bitfinex/quotes_ETHUSD_20250403
["timestamp","ask_amount","ask_price","bid_price","bid_amount"]
[1743718180326,5.58610657,1808.0,1807.7,5.53175]
[1743718180729,11.11724657,1808.0,1807.6,11.06417]
[1743718181045,5.53131,1807.9,1807.6,5.53205]
[1743718181914,5.53131,1807.9,1807.7,0.16523227]
[1743718182118,5.58644657,1807.9,1807.7,0.16523227]
[1743718183149,0.05513657,1807.9,1807.7,0.16523227]
[1743718183855,7.36053569,1807.9,1807.7,0.16523227]
[1743718185133,12.89197569,1807.9,1807.7,0.16523227]
[1743718185451,7.30539912,1807.9,1807.7,0.16523227]
[1743718185757,12.89201569,1807.9,1807.7,0.16523227]
[1743718185909,12.83687912,1807.9,1807.7,0.16523227]
[1743718186108,0.05513657,1807.8,1807.6,5.53219]
[1743718189656,0.05513657,1807.8,1807.5,5.5324]
[1743718189657,0.85303657,1807.8,1807.5,5.5324]
[1743718190017,6.38462657,1807.8,1807.5,5.5324]
[1743718190970,11.91638657,1807.8,1807.4,5.53272]
[1743718191151,2.16690257,1807.8,1807.4,5.53271]
[1743718191339,5.53199,1807.7,1807.3,6.30734]
[1743718191654,5.58738657,1807.6,1807.3,11.06603]
[1743718191852,0.05513657,1807.6,1807.3,11.06603]
[1743718192159,0.05513657,1807.6,1807.4,5.5328]
[1743718192374,2.16690257,1807.8,1807.5,5.53233]
[1743718192666,0.05513657,1807.7,1807.5,5.53233]
[1743718192849,0.05513657,1807.7,1807.5,11.06472]
[1743718193053,0.05513657,1807.7,1807.6,5.53219]
[1743718193244,6.01,1807.9,1807.7,5.53183]
[1743718193444,6.06513657,1807.9,1807.7,5.53183]
[1743718194229,6.06513657,1807.9,1807.6,11.06429]
[1743718194764,6.06513657,1807.9,1807.7,5.53186]
[1743718194964,11.59645657,1807.9,1807.6,5.5321]
[1743718195165,6.01,1807.9,1807.7,5.53175]
[1743718195469,6.06513657,1807.9,1807.7,5.53175]
[1743718195667,6.06513657,1807.9,1807.6,11.06417]
[1743718195990,6.06513657,1807.9,1807.7,5.53179]
[1743718196353,11.59641657,1807.9,1807.6,5.53208]
[1743718196664,6.01,1807.9,1807.6,11.06416]
[1743718196828,6.06513657,1807.9,1807.6,11.06416]
[1743718197031,6.06513657,1807.9,1807.7,0.15805343]
[1743718197273,6.06513657,1807.9,1807.7,5.68992343]
[1743718197575,11.59652657,1807.9,1807.7,0.15805343]
[1743718197775,19.41073666,1807.9,1807.7,0.15805343]
[1743718197981,6.650367,1807.8,1807.7,0.15805343]
[1743718198277,6.650367,1807.8,1807.5,11.06488]
[1743718198278,6.650367,1807.8,1807.4,0.8236]
[1743718198460,6.01,1807.9,1807.7,0.15805343]
[1743718198660,6.06513657,1807.9,1807.6,5.53209]
[1743718198863,6.06513657,1807.9,1807.8,0.15795383]
[1743718199042,33.03515823,1807.9,1807.7,0.15805343]
[1743718199369,33.03515823,1807.9,1807.8,0.15795383]
[1743718199370,13.87916366,1807.9,1807.8,0.15795383]
[1743718199575,33.73864666,1807.9,1807.6,5.53209]
[1743718199777,13.87916366,1807.9,1807.8,0.15795383]
[1743718199977,39.27008666,1807.9,1807.6,5.53209]
[1743718200174,13.87916366,1807.9,1807.8,0.15795383]
[1743718200378,13.87916366,1807.9,1807.6,5.53209]
[1743718200379,33.73864666,1807.9,1807.6,5.53209]
[1743718200678,13.87916366,1807.9,1807.8,0.15795383]
[1743718200854,33.73864666,1807.9,1807.7,0.15805343]
[1743718201045,13.87916366,1807.9,1807.8,0.15795383]
[1743718201241,33.73864666,1807.9,1807.8,0.15795383]
[1743718201446,39.27015666,1807.9,1807.6,5.53209]
[1743718201673,13.87916366,1807.9,1807.6,5.53209]
[1743718201879,19.41071366,1807.9,1807.7,0.15805343]
[1743718202074,11.55602937,1807.8,1807.7,0.15805343]
[1743718202380,9.614958,1807.8,1807.7,0.15805343]
[1743718202575,8.145136,1807.8,1807.6,5.53207]
[1743718202774,11.54131,1807.9,1807.7,0.15805343]
[1743718203075,5.92987657,1807.8,1807.7,0.15805343]
[1743718203579,11.46145657,1807.8,1807.5,5.53236]
[1743718203774,5.53158,1807.8,1807.5,11.06472]
[1743718203943,0.05513657,1807.8,1807.6,5.69078387]
[1743718204144,11.54131,1807.9,1807.6,5.69078387]
[1743718204343,19.405214,1807.9,1807.6,0.15859387]
[1743718204800,13.873664,1807.9,1807.6,0.15859387]
[1743718204962,13.873664,1807.9,1807.6,11.22284387]
[1743718205290,13.873664,1807.9,1807.6,5.69067387]
[1743718205789,19.405104,1807.9,1807.6,5.69067387]
[1743718206013,13.873664,1807.9,1807.6,5.69067387]
[1743718206856,8.342354,1807.9,1807.6,11.22277387]
[1743718207056,13.92884057,1807.9,1807.6,5.69067387]
[1743718207255,13.873704,1807.9,1807.6,5.69067387]
[1743718208391,13.873704,1807.9,1807.6,11.22275387]
[1743718208687,8.342354,1807.9,1807.7,5.53178]
[1743718208902,0.41094354,1808.2,1807.7,6.31548]
[1743718208903,0.7978,1808.2,1807.7,6.31548]
[1743718209104,11.441,1808.3,1808.0,5.53088]
[1743718209309,11.441,1808.3,1808.1,11.21915369]
[1743718209457,46.0768,1808.4,1808.1,5.68852369]
[1743718209654,5.58520657,1808.3,1808.1,0.15796369]
[1743718209854,3.628397,1808.2,1808.1,0.15796369]
[1743718210089,3.628397,1808.2,1807.9,11.06228]
[1743718210312,5.53007,1808.3,1808.0,5.68900325]
[1743718210872,5.58520657,1808.3,1808.0,5.68900325]
[1743718211070,5.58520657,1808.3,1808.0,11.21983325]
[1743718211405,5.53007,1808.3,1808.0,11.21983325]
[1743718211702,51.6066,1808.4,1808.1,5.53061]
[1743718211703,46.0768,1808.4,1808.1,5.53061]
[1743718211901,46.0768,1808.4,1808.2,0.15786414]
[1743718212677,51.60657,1808.4,1808.2,0.15786414]
[1743718213006,2.501658,1808.3,1808.2,0.15786414]
[1743718213375,2.057828,1808.3,1808.2,0.15786414]
[1743718214510,10.95162637,1808.3,1808.2,0.15786414]
[1743718214671,30.81110937,1808.3,1807.9,5.53122]
[1743718214877,25.389983,1808.2,1808.0,0.15638825]
[1743718215212,4.30388157,1808.1,1807.9,5.53122]
[1743718215518,5.5305,1808.2,1808.0,0.15638825]
[1743718215885,5.58563657,1808.2,1808.0,0.15638825]
[1743718216088,11.06025,1808.3,1808.0,0.15638825]
[1743718216287,12.789155,1808.3,1808.0,0.15638825]
[1743718216586,19.859483,1808.2,1808.0,0.15638825]
[1743718217109,25.389853,1808.2,1808.0,0.15638825]
[1743718217296,4.556145,1808.1,1808.0,0.15638825]
[1743718218208,16.59039,1808.1,1807.8,5.53155]
[1743718218422,3.28504,1808.0,1807.8,5.53155]
[1743718218712,6.38359657,1808.1,1807.8,11.06301]
[1743718219008,6.38360657,1808.1,1807.8,5.53146]
[1743718219207,6.38360657,1808.1,1807.8,11.06292]
[1743718219414,14.649222,1808.0,1807.7,5.53175]
[1743718219597,5.53101,1808.0,1807.7,11.06349]
[1743718220006,7.51986766,1808.1,1807.7,11.06349]
[1743718220193,7.57500423,1808.1,1807.7,11.06349]
[1743718220517,7.57500423,1808.1,1807.8,5.53157]
[1743718220690,2.32457,1807.8,1807.7,5.53174]
[1743718220890,5.53102,1808.0,1807.7,5.53174]
[1743718221089,5.58615657,1808.0,1807.7,5.53174]
[1743718221975,5.43,1807.9,1807.6,0.7837]
[1743718222175,0.88663657,1807.8,1807.4,6.34336]
[1743718222914,6.41834657,1807.8,1807.5,5.53245]
[1743718223078,6.41834657,1807.8,1807.5,11.06485]
[1743718223274,6.41834657,1807.8,1807.5,5.5324]
[1743718224209,5.5321,1807.7,1807.3,5.53299]
[1743718224415,0.05513657,1807.6,1807.3,5.53299]
[1743718224580,5.58723657,1807.7,1807.3,5.53299]
[1743718225110,0.05513657,1807.7,1807.2,6.34415]
[1743718225320,2.62459823,1807.8,1807.5,11.06457]
[1743718225494,0.88663657,1807.8,1807.5,5.53224]
[1743718225683,6.41834657,1807.8,1807.5,5.53224]
[1743718226120,0.88663657,1807.8,1807.2,0.8108]
[1743718226322,11.06598,1807.4,1807.1,0.1]
[1743718226613,5.43,1807.5,1807.4,5.5328]
[1743718226819,5.43,1807.5,1807.3,5.53297]
[1743718227016,5.43,1807.5,1807.4,5.69203397]
[1743718227825,11.54161,1807.8,1807.5,5.5324]
[1743718227990,17.07345,1807.8,1807.4,6.50208397]
[1743718228320,17.07345,1807.8,1807.5,0.15913434]
[1743718228321,5.53219,1807.6,1807.5,0.15913434]
[1743718228524,5.53199,1807.7,1807.3,11.06603]
[1743718228821,5.53199,1807.7,1807.4,0.15923397]
[1743718228990,5.53199,1807.7,1807.3,11.06603]
[1743718229186,6.32428,1807.6,1807.5,0.15913434]
[1743718229392,7.57055223,1807.6,1807.3,5.53309]
[1743718229591,6.37941657,1807.6,1807.5,0.15913434]
[1743718229793,6.37941657,1807.6,1807.3,5.53309]
[1743718230002,6.37941657,1807.6,1807.5,0.15913434]
[1743718230216,0.84693657,1807.6,1807.3,5.53297]
[1743718230421,0.84693657,1807.6,1807.5,0.15913434]
[1743718230624,8.339525,1807.8,1807.4,6.34287]
[1743718230625,14.663045,1807.8,1807.4,6.34287]
[1743718230822,14.663045,1807.8,1807.5,0.15913434]
[1743718231129,14.663045,1807.8,1807.5,5.69162434]
[1743718231326,11.44,1807.8,1807.5,11.22384434]
[1743718231615,16.9716,1807.8,1807.5,5.83645146]
[1743718231791,16.9716,1807.8,1807.5,5.89177042]
[1743718232228,16.9716,1807.8,1807.5,5.83645146]
[1743718232721,16.9716,1807.8,1807.5,5.89177041]
[1743718232903,16.9716,1807.8,1807.5,11.42415041]
[1743718233104,11.44,1807.8,1807.6,5.53211]
[1743718233423,11.44,1807.8,1807.7,0.30399383]
[1743718233628,10.96158,1807.8,1807.7,0.30399383]
[1743718234120,10.96158,1807.8,1807.5,5.58766894]
[1743718234319,10.96158,1807.8,1807.6,0.30410147]
[1743718236238,16.49331,1807.8,1807.6,0.30410147]
[1743718238436,6.34651,1807.3,1807.1,0.1]
[1743718238589,6.40164657,1807.3,1807.1,0.1]
[1743718239222,6.34651,1807.3,1807.1,0.1]
[1743718239402,6.40164657,1807.3,1807.1,0.1]
[1743718239591,6.34651,1807.3,1807.1,0.1]
[1743718241327,0.8133,1807.3,1807.1,5.63372]
[1743718241498,5.43,1807.4,1807.2,6.37872443]
[1743718241712,5.43,1807.4,1807.3,5.53311]
[1743718242237,5.43,1807.4,1807.3,5.83823993]
[1743718242639,6.01,1807.6,1807.5,5.5325]
[1743718242844,0.05513657,1807.7,1807.4,6.32269]
[1743718243039,16.49337,1807.8,1807.5,5.83741461]
[1743718243239,5.58705657,1807.7,1807.5,0.30491461]
[1743718243439,5.53219,1807.6,1807.5,0.30491461]
[1743718243742,6.34549,1807.6,1807.5,0.30491461]
[1743718243965,5.5325,1807.5,1807.1,6.42358]
[1743718244144,11.06528,1807.5,1807.1,12.599538]
[1743718244457,10.96281,1807.4,1807.1,7.015938]
[1743718244664,10.96281,1807.4,1807.1,11.90717]
[1743718244955,5.43,1807.4,1807.1,11.90717]
[1743718245155,5.43,1807.4,1807.3,5.53311]
[1743718245715,6.01,1807.6,1807.5,5.5325]
[1743718245932,5.43,1807.7,1807.5,5.5325]
[1743718245933,5.43,1807.7,1807.5,11.06487]
[1743718246261,5.43,1807.7,1807.5,11.06474]
[1743718246415,5.43,1807.7,1807.5,11.06476]
[1743718246935,5.43,1807.7,1807.6,5.53219]
[1743718247147,0.05513657,1807.9,1807.6,5.53219]
[1743718247328,0.8133,1808.0,1807.7,5.53178]
[1743718247512,39.847,1808.2,1808.0,5.53079]
[1743718247711,39.847,1808.2,1808.0,11.11690564]
[1743718247959,5.43,1808.3,1808.0,11.0616]
[1743718248128,5.43,1808.3,1808.0,5.53079]
[1743718248328,5.53039,1808.2,1807.9,6.32123]
[1743718248830,5.58552657,1808.2,1807.9,5.53123]
[1743718249164,5.53039,1808.2,1807.9,5.53123]
[1743718249460,5.58552657,1808.2,1807.8,11.06304]
[1743718249662,11.11609657,1808.2,1807.8,5.53152]
[1743718249868,11.11609657,1808.2,1807.6,4.68924855]
[1743718249869,5.53128,1807.9,1807.6,5.53209]
[1743718250167,11.93186657,1807.8,1807.4,5.53277]
[1743718250463,5.58702657,1807.7,1807.4,5.53277]
[1743718250621,0.05513657,1807.7,1807.4,5.5327]
[1743718250822,0.8133,1807.8,1807.4,1.185579]
[1743718251133,11.77363,1807.9,1807.6,5.53217]
[1743718251454,0.05513657,1807.8,1807.5,5.53227]
[1743718251635,5.58680657,1807.8,1807.5,5.53227]
[1743718251959,11.77363,1807.9,1807.5,5.58758933]
[1743718251960,17.30512,1807.9,1807.5,5.58758933]
[1743718252449,5.53165,1807.8,1807.5,5.53227]
[1743718252635,11.11860657,1807.8,1807.4,5.53277]
[1743718252838,5.53165,1807.8,1807.4,11.06544]
[1743718253138,6.31836,1807.6,1807.2,11.06663]
[1743718253342,0.7859,1807.6,1807.4,5.53266]
[1743718254539,0.05513657,1807.7,1807.4,0.7943]
[1743718254752,6.01,1807.8,1807.7,5.53189]
[1743718254951,5.429,1807.9,1807.6,5.53206]
[1743718255359,5.429,1807.9,1807.7,5.53188]
[1743718255729,0.7859,1808.0,1807.7,11.06361]
[1743718256062,5.429,1808.0,1807.7,11.85791]
[1743718256358,5.429,1808.0,1807.8,5.53156]
[1743718256561,5.429,1808.1,1807.9,11.06238]
[1743718256755,5.429,1808.1,1807.9,11.36514474]
[1743718257531,5.429,1808.1,1808.0,5.53097]
[1743718257760,5.429,1808.1,1808.0,5.83362715]
[1743718257960,12.2249,1808.5,1808.2,5.5302]
[1743718258256,17.75445,1808.5,1808.3,0.30083555]
[1743718258861,5.58488657,1808.4,1808.3,0.30083555]
[1743718259158,5.53017,1808.3,1807.9,5.53113]
[1743718259376,5.53017,1808.3,1808.0,0.30115826]
[1743718259532,5.53017,1808.3,1808.1,5.53062]
[1743718259533,1.11150966,1808.3,1808.1,5.53062]
[1743718259733,5.58492657,1808.4,1808.2,0.30094311]
[1743718260364,5.58492657,1808.4,1808.0,5.5308]
[1743718260552,5.58492657,1808.4,1808.1,5.83170068]
[1743718261093,5.58492657,1808.4,1808.1,0.30105068]
[1743718261273,5.53009,1808.3,1808.1,0.30105068]
[1743718261446,5.52979,1808.4,1808.1,0.30105068]
[1743718261646,7.36039557,1808.4,1808.1,5.83170068]
[1743718261841,12.89033557,1808.4,1808.1,0.30105068]
[1743718262061,5.53007,1808.3,1808.1,0.30105068]
[1743718262263,6.37148657,1808.2,1807.8,11.0631]
[1743718262568,7.00863523,1808.2,1807.8,11.0631]
[1743718262772,7.00863523,1808.2,1807.9,5.53124]
[1743718264475,1.47818523,1808.2,1807.7,6.32609]
[1743718264770,5.427,1808.3,1808.1,5.53045]
[1743718265071,5.427,1808.3,1808.1,11.06096]
[1743718265240,5.427,1808.3,1808.1,5.53045]
[1743718265768,11.437,1808.5,1808.2,5.5302]
[1743718265972,11.437,1808.5,1808.3,5.53]
[1743718266267,13.212209,1808.5,1808.3,5.53]
[1743718266650,13.212209,1808.5,1808.2,5.5302]
[1743718267044,13.212209,1808.5,1808.3,5.52995]
[1743718267269,13.212209,1808.5,1808.2,5.5302]
[1743718267451,18.741679,1808.5,1808.2,5.5302]
[1743718268071,1.92930447,1808.4,1808.1,5.5306]
[1743718268275,1.92930447,1808.4,1808.1,11.06115]
[1743718268583,1.92930447,1808.4,1808.1,11.06111]
[1743718269373,1.92930447,1808.4,1808.1,5.53052]
[1743718269673,11.84952,1808.3,1807.9,5.53113]
[1743718269873,1.24008857,1808.2,1807.9,5.53113]
[1743718270246,6.77046857,1808.2,1807.9,5.53113]
[1743718271166,1.24008857,1808.2,1807.9,5.53113]
[1743718271365,1.24008857,1808.2,1808.0,5.53088]
[1743718271565,6.77050857,1808.2,1807.9,5.53113]
[1743718271968,0.67705086,1808.1,1808.0,0.30005645]
[1743718272643,0.67705086,1808.1,1807.9,5.53127]
[1743718272848,0.05513657,1808.2,1808.0,0.30005645]
[1743718273245,5.58560657,1808.2,1808.0,0.30005645]
[1743718274580,5.58560657,1808.2,1807.8,5.53155]
[1743718274784,5.58560657,1808.2,1807.9,5.83166254]
[1743718275277,0.05513657,1808.2,1807.9,11.36281254]
[1743718275451,0.05513657,1808.2,1807.9,5.83163254]
[1743718275650,6.22296923,1808.2,1807.9,5.83163254]
[1743718276251,0.69257923,1808.2,1808.0,5.53096]
[1743718276578,1.8741679,1808.4,1808.1,5.53066]
[1743718276778,12.226,1808.5,1808.2,5.83023979]
[1743718277079,6.01,1808.7,1808.6,5.52913]
[1743718277381,6.215,1809.0,1808.7,5.52866]
[1743718277583,6.215,1809.0,1808.6,1.09087556]
[1743718277584,11.74304,1809.0,1808.8,0.29946055]
[1743718277746,6.75766057,1808.9,1808.5,10.75921945]
[1743718278073,1.22944057,1808.9,1808.6,5.82859742]
[1743718278276,5.426,1809.0,1808.7,11.0575]
[1743718278477,5.426,1809.0,1808.7,5.8281899]
[1743718278980,10.95392,1809.0,1808.7,5.8281899]
[1743718279683,10.95392,1809.0,1808.7,0.2994799]
[1743718279884,10.95392,1809.0,1808.7,5.8282999]
[1743718280084,1.095392,1808.9,1808.7,5.8282999]
[1743718280258,5.426,1809.0,1808.7,11.3568699]
[1743718280450,5.426,1809.0,1808.8,5.52848]
[1743718280788,12.10560855,1809.2,1808.9,5.82736492]
[1743718280789,7.314,1809.2,1808.9,5.82736492]
[1743718281109,12.89655657,1809.2,1808.9,5.82736492]
[1743718281385,1.28965566,1809.1,1808.9,0.29926492]
[1743718281590,1.28965566,1809.1,1808.8,5.52836]
[1743718281795,1.28965566,1809.1,1809.0,0.29915744]
[1743718281956,1.28965566,1809.1,1808.9,5.82736492]
[1743718282357,1.28965566,1809.1,1808.9,5.82733492]
[1743718282591,1.28965566,1809.1,1808.9,0.29926492]
[1743718282889,1.28965566,1809.1,1808.8,5.5284]
[1743718283089,12.84135,1809.2,1809.0,0.29915744]
[1743718283292,12.84135,1809.2,1808.9,5.82748492]
[1743718283601,12.84135,1809.2,1809.0,0.29915744]
[1743718283890,7.314,1809.2,1809.0,5.82702744]
[1743718284268,7.314,1809.2,1809.0,0.29915744]
[1743718284477,14.73327157,1809.2,1809.0,0.29915744]
[1743718284679,14.678135,1809.2,1809.0,0.29915744]
[1743718284879,5.52761,1809.1,1809.0,0.29915744]
[1743718285079,0.05513657,1809.1,1808.6,5.52909]
[1743718285280,6.31383,1808.9,1808.6,5.52909]
[1743718285478,7.3106,1809.2,1808.7,5.58411475]
[1743718285695,7.3106,1809.2,1808.9,5.52798]
[1743718285993,6.525,1809.2,1809.0,5.5278]
[1743718286358,6.525,1809.2,1809.0,11.05556]
[1743718286564,1.1,1809.2,1809.0,5.52776]
[1743718286786,1.1,1809.2,1809.1,0.29257413]
[1743718287170,1.1,1809.2,1809.1,5.82018413]
[1743718287371,1.1,1809.2,1809.1,6.64688413]
[1743718290794,1.1,1809.2,1809.1,7.86434554]
[1743718291004,1.1,1809.2,1809.1,12.6088607]
[1743718291189,1.1,1809.2,1809.1,12.55359409]
[1743718291696,6.11,1809.9,1809.1,9.19928409]
[1743718291995,6.11,1809.9,1809.7,5.52563]
[1743718292198,0.1,1809.9,1809.8,0.29036933]
[1743718292388,5.62516,1809.9,1809.8,0.29036933]
[1743718292699,7.361023,1809.9,1809.5,11.05256]
[1743718292877,7.361023,1809.9,1809.8,0.28852098]
[1743718293076,1.835863,1809.9,1809.6,11.05187]
[1743718293286,7.361043,1809.9,1809.6,5.52592]
[1743718293475,12.94153957,1809.9,1809.7,0.28862836]
[1743718293686,2.07975396,1809.8,1809.7,0.28862836]
[1743718293886,2.07975396,1809.8,1809.5,11.05251]
[1743718294085,2.07975396,1809.8,1809.7,0.28862836]
[1743718294284,2.07975396,1809.8,1809.6,0.28873575]
[1743718294477,0.7856,1809.8,1809.7,0.28862836]
[1743718294796,5.52586,1809.7,1809.3,5.52688]
[1743718295004,5.58099657,1809.7,1809.4,5.81559057]
[1743718296118,11.10694657,1809.7,1809.4,5.81559057]
[1743718296306,5.52586,1809.7,1809.4,5.81559057]
[1743718296475,7.06469557,1809.7,1809.4,5.81559057]
[1743718298005,7.06469557,1809.7,1809.4,5.81557057]
[1743718298318,0.1,1809.9,1809.7,5.52566]
[1743718298635,5.422,1809.8,1809.7,5.52566]
[1743718298971,5.422,1809.8,1809.6,5.52608]
[1743718299175,5.422,1809.8,1809.6,5.52597]
[1743718299618,5.422,1809.8,1809.5,6.30357]
[1743718299789,5.422,1809.8,1809.6,5.52598]
[1743718302035,12.87169,1809.8,1809.7,0.28598703]
[1743718302207,7.34602,1809.8,1809.3,6.30424]
[1743718302423,5.52656,1809.5,1809.1,5.52745]
[1743718302617,6.336,1809.4,1809.1,5.52745]
[1743718303122,11.86287,1809.4,1809.1,5.52745]
[1743718303322,6.336,1809.4,1809.0,5.52782]
[1743718303518,11.757,1809.4,1809.1,5.5276]
[1743718304526,5.58223657,1809.3,1809.0,5.52782]
[1743718304718,5.58223657,1809.3,1809.0,5.5278]
[1743718305338,5.58223657,1809.3,1809.0,5.52781]
[1743718305645,0.05513657,1809.3,1809.1,5.52734]
[1743718305826,8.01377957,1809.4,1809.1,5.52734]
[1743718305995,13.54052957,1809.4,1809.1,5.52734]
[1743718306200,6.88112296,1809.3,1809.0,5.52784]
[1743718306401,1.40918953,1809.3,1809.0,5.52784]
[1743718306601,6.93623953,1809.3,1809.0,11.05564]
[1743718306923,5.58218657,1809.3,1809.0,5.5278]
[1743718307341,0.05513657,1809.3,1809.0,5.52776]
[1743718307841,5.58218657,1809.3,1809.0,5.52776]
[1743718308542,0.05513657,1809.3,1809.1,5.5276]
[1743718309042,0.05513657,1809.3,1809.0,5.52776]
[1743718309547,6.01,1809.5,1809.3,5.52699]
[1743718309747,5.421,1809.4,1809.2,5.5272]
[1743718310349,5.421,1809.4,1809.1,11.82441]
[1743718310846,5.421,1809.4,1809.2,5.52712]
[1743718312947,5.421,1809.4,1809.1,6.29706]
[1743718313105,11.00299657,1809.4,1809.1,5.52756]
[1743718313305,10.94786,1809.4,1809.1,5.52756]
[1743718313722,10.94786,1809.4,1809.1,5.52746]
[1743718313922,5.421,1809.4,1809.1,11.05496]
[1743718314160,5.421,1809.4,1809.2,5.52726]
[1743718314709,5.421,1809.4,1809.2,5.52717]
[1743718314910,5.421,1809.4,1809.3,5.52699]
[1743718315323,5.421,1809.4,1809.2,5.52717]
[1743718315825,5.421,1809.4,1809.1,5.52753]
[1743718316022,16.47463,1809.4,1809.1,5.52753]
[1743718316222,0.8096,1809.3,1809.1,5.52753]
[1743718316913,0.8096,1809.3,1809.2,0.26181798]
[1743718317240,0.8096,1809.3,1809.1,5.52753]
[1743718317469,0.8096,1809.3,1809.2,0.26181798]
[1743718317752,0.8096,1809.3,1809.1,11.05502]
[1743718317966,6.33659,1809.3,1809.2,0.26339756]
[1743718318140,8.065021,1809.3,1809.2,0.26339756]
[1743718318334,8.065021,1809.3,1809.0,5.52781]
[1743718318553,8.065021,1809.3,1809.2,0.26339756]
[1743718318554,2.538031,1809.3,1809.2,0.26339756]
[1743718318737,0.8096,1809.3,1809.1,5.79100502]
[1743718319038,0.8096,1809.3,1809.2,0.26339756]
[1743718319267,0.8096,1809.3,1809.1,5.52748]
[1743718319427,0.8096,1809.3,1809.2,0.26339756]
[1743718319627,0.8096,1809.3,1809.2,5.5273]
[1743718319867,6.2306,1809.4,1809.2,5.79069756]
[1743718320070,8.06244157,1809.4,1809.2,5.79069756]
[1743718320232,8.06244157,1809.4,1809.2,5.79061756]
[1743718320433,8.06244157,1809.4,1809.2,5.79058756]
[1743718320633,6.28573657,1809.4,1809.2,5.79058756]
[1743718320929,0.05513657,1809.4,1809.3,5.52699]
[1743718321135,11.43,1809.5,1809.4,5.52669]
[1743718321332,11.43,1809.5,1809.3,11.31715012]
[1743718321644,11.43,1809.5,1809.4,5.78987269]
[1743718322332,6.01,1809.5,1809.4,5.78987269]
[1743718322844,6.01,1809.5,1809.4,0.26318269]
[1743718323168,6.01,1809.5,1809.4,5.52669]
[1743718323680,6.01,1809.5,1809.4,5.79088178]
[1743718324152,6.2296,1809.7,1809.6,5.52608]
[1743718324530,6.2296,1809.7,1809.6,0.26397696]
[1743718324945,6.2296,1809.7,1809.6,5.79005696]
[1743718325147,5.62,1809.9,1809.8,5.52547]
[1743718325346,0.2,1809.9,1809.8,5.52547]
[1743718325552,0.2,1809.9,1809.8,5.78848632]
[1743718325961,0.2,1809.9,1809.8,6.58208632]
[1743718326280,0.2,1809.9,1809.8,7.79285995]
[1743718326662,0.2,1809.9,1809.8,7.84810208]
[1743718327255,0.2,1809.9,1809.8,7.79285995]
[1743718328887,0.2,1809.9,1809.8,7.79285995]
[1743718329658,0.2,1809.9,1809.8,7.84809838]
[1743718329865,0.2,1809.9,1809.8,7.79285995]
[1743718330254,0.2,1809.9,1809.8,7.84809856]
[1743718330776,0.2,1809.9,1809.8,7.79285995]
[1743718332057,0.2,1809.9,1809.8,6.99925995]
[1743718332257,0.2,1809.9,1809.8,5.843734]
[1743718332577,0.2,1809.9,1809.8,5.78848632]
[1743718333150,0.2,1809.9,1809.8,5.843734]
[1743718333970,0.2,1809.9,1809.8,5.78848632]
[1743718334168,0.2,1809.9,1809.8,10.47773487]
[1743718334482,0.2,1809.9,1809.8,13.44147846]
[1743718334656,0.2,1809.9,1809.8,13.38623736]
[1743718337901,0.2,1809.9,1809.8,16.93623736]
[1743718338191,1e-05,1809.9,1809.8,16.93623736]
[1743718344964,1e-05,1809.9,1809.8,12.24698881]
[1743718345169,1e-05,1809.9,1809.8,9.24698881]
[1743718345369,1e-05,1809.9,1809.8,8.75222724]
[1743718346091,1e-05,1809.9,1809.8,9.30222724]
[1743718347308,1e-05,1809.9,1809.8,17.71722724]
[1743718347603,1e-05,1809.9,1809.8,17.66198881]
[1743718349495,0.7765,1810.8,1810.7,5.52272]
[1743718349989,0.7765,1810.8,1810.7,5.74428633]
[1743718350204,0.7765,1810.8,1810.7,5.52272]
[1743718350490,0.7765,1810.8,1810.7,5.74428633]
[1743718350790,0.7765,1810.8,1810.7,0.22156633]
[1743718351889,0.1,1810.9,1810.8,5.52242]
[1743718352297,0.1,1810.9,1810.8,5.7429899]
[1743718353362,0.1,1810.9,1810.8,5.79820187]
[1743718353883,0.1,1810.9,1810.8,5.7429899]
[1743718357396,0.1,1810.9,1810.8,5.79820469]
[1743718357596,0.1,1810.9,1810.8,6.98772832]
[1743718358411,0.1,1810.9,1810.8,6.93251353]
[1743718359523,0.1,1810.9,1810.8,6.98772838]
[1743718362822,0.1,1810.9,1810.8,6.93251353]
[1743718363004,0.1,1810.9,1810.8,6.98772839]
[1743718363593,0.1,1810.9,1810.8,6.93251353]
[1743718363815,0.1,1810.9,1810.8,6.98772861]
[1743718364014,5.59444855,1810.9,1810.8,0.2205699]
[1743718364325,0.8052,1810.6,1810.3,5.52384]
[1743718364531,6.32824,1810.6,1810.3,5.52381]
[1743718364735,6.32868,1810.5,1810.2,5.52422]
[1743718364942,6.32868,1810.5,1810.1,5.52454]
[1743718365102,0.8052,1810.4,1810.2,5.5241]
[1743718365792,0.8052,1810.4,1810.1,5.52451]
[1743718365998,0.8052,1810.4,1810.2,5.52405]
[1743718366317,0.8052,1810.4,1810.3,5.52394]
[1743718367724,0.8052,1810.6,1810.5,5.52333]
[1743718370228,0.8052,1810.8,1810.7,5.52252]
[1743718370440,0.1,1810.9,1810.8,5.52242]
[1743718370734,0.1,1810.9,1810.8,5.57763883]
[1743718370921,0.1,1810.9,1810.8,5.57763884]
[1743718371323,0.1,1810.9,1810.8,6.68765472]
[1743718371526,0.1,1810.9,1810.6,5.52288]
[1743718371745,0.8052,1810.8,1810.6,5.52288]
[1743718371946,0.8052,1810.8,1810.7,5.52272]
[1743718375115,0.1,1810.9,1810.8,5.52242]
[1743718375730,0.1,1810.9,1810.7,5.52272]
[1743718375930,0.8003,1810.8,1810.6,5.52297]
[1743718376318,0.8003,1810.8,1810.6,11.04584]
[1743718376540,0.8003,1810.8,1810.6,5.52287]
[1743718376849,0.8003,1810.8,1810.6,6.075157]
[1743718377017,0.8003,1810.8,1810.7,0.19613164]
[1743718377572,0.8003,1810.8,1810.7,5.71885164]
[1743718377922,0.8003,1810.8,1810.7,0.19613164]
[1743718380073,0.8003,1810.8,1810.7,5.71885164]